bitfinex/quotes_SOLUSD_20240605
["timestamp","ask_amount","ask_price","bid_price","bid_amount"]
[1717569325100,7.14,173.97,173.96,2.1268]
[1717569325610,2.1261,174.03,173.97,2.1267]
[1717569325780,7.14,173.98,173.97,2.1267]
[1717569326674,7.14,173.98,173.95,4.254]
[1717569326878,2.1262,174.02,173.96,2.1268]
[1717569327084,7.14,173.97,173.96,2.1268]
[1717569333511,25.1519,174.04,173.97,4.2533]
[1717569333512,0.4,174.04,173.97,4.2533]
[1717569333810,7.14,174.01,174.0,2.1264]
[1717569337718,7.14,174.01,173.99,2.1264]
[1717569338015,7.14,174.0,173.99,2.1264]
[1717569338589,7.14,174.0,173.97,2.1267]
[1717569338785,7.14,173.98,173.96,384.5536]
[1717569339016,0.4,174.04,173.97,2.1267]
[1717569339201,7.14,173.98,173.97,2.1267]
[1717569342008,7.14,173.98,173.96,380.3]
[1717569342208,7.14,173.97,173.96,380.3]
[1717569342428,7.14,173.97,173.93,399.4447]
[1717569342631,2.1264,174.0,173.95,2.1269]
[1717569342837,2.1261,174.03,173.97,2.1267]
[1717569343137,7.14,173.98,173.97,2.1267]
[1717569344941,7.14,173.98,173.96,2.1268]
[1717569345111,7.14,173.97,173.96,2.1268]
[1717569345311,7.14,173.97,173.93,386.6818]
[1717569345531,7.14,173.96,173.94,4.2543]
[1717569346115,7.14,173.96,173.95,2.127]
[1717569346934,2.1263,174.01,173.96,2.1268]
[1717569347234,7.14,173.97,173.96,2.1268]
[1717569348433,22.1262,174.02,173.97,2.1267]
[1717569348609,7.14,173.98,173.95,4.254]
[1717569348815,7.14,173.96,173.95,2.127]
[1717569349010,7.14,173.96,173.94,382.4271]
[1717569349216,2.1264,174.0,173.95,2.127]
[1717569349419,7.14,173.96,173.95,2.127]
[1717569349949,2.1263,174.01,173.95,2.127]
[1717569350135,7.14,173.96,173.95,2.127]
[1717569350636,33.1558,174.04,173.96,2.1268]
[1717569350947,7.14,173.97,173.95,2.1269]
[1717569351140,7.14,173.96,173.95,2.1269]
[1717569355233,20.4,174.04,173.97,2.1267]
[1717569355548,7.14,173.98,173.96,2.1268]
[1717569355750,2.1262,174.02,173.96,2.1268]
[1717569355952,7.14,173.97,173.96,2.1268]
[1717569356156,7.14,173.97,173.95,2.1269]
[1717569356451,2.1263,174.01,173.95,2.1269]
[1717569356452,7.14,173.96,173.95,2.1269]
[1717569357033,2.1263,174.01,173.95,2.1269]
[1717569357231,2.1263,174.01,173.96,2.1269]
[1717569357438,2.1263,174.01,173.96,2.1268]
[1717569357648,7.14,173.97,173.96,2.1268]
[1717569359351,7.14,173.97,173.95,2.1269]
[1717569359526,7.14,173.96,173.95,2.1269]
[1717569360226,2.1263,174.01,173.96,2.1268]
[1717569360443,7.14,173.97,173.96,2.1268]
[1717569361239,2.1262,174.02,173.96,2.1268]
[1717569361454,0.4,174.04,173.99,2.1265]
[1717569361748,7.14,174.0,173.99,2.1265]
[1717569362922,7.14,174.0,173.97,2.1267]
[1717569363131,7.14,173.98,173.96,20.0]
[1717569363360,7.14,173.98,173.97,2.1268]
[1717569364231,0.4,174.04,173.96,26.4727]
[1717569364460,0.4,174.04,173.99,2.1264]
[1717569364638,7.14,174.0,173.98,2.1266]
[1717569364846,2.526,174.04,173.98,2.1266]
[1717569365045,7.14,173.99,173.98,2.1266]
[1717569365847,0.4,174.04,173.99,2.1265]
[1717569366052,7.14,174.0,173.99,2.1265]
[1717569366950,7.14,174.0,173.99,8.6525]
[1717569367147,0.4,174.04,174.0,2.1263]
[1717569367456,7.14,174.02,174.0,2.1263]
[1717569368837,7.14,174.02,174.01,2.1263]
[1717569372363,7.64,174.02,173.99,380.3]
[1717569372565,2.1267,173.98,173.9,297.7595]
[1717569372752,2.1267,173.98,173.92,2.1273]
[1717569372953,7.14,173.93,173.92,2.1273]
[1717569373553,28.56,173.97,173.94,2.127]
[1717569373787,7.14,173.95,173.93,4.2544]
[1717569374086,2.1262,174.02,173.96,2.1269]
[1717569374257,7.14,173.97,173.96,2.1269]
[1717569374686,22.1261,174.03,173.97,2.1267]
[1717569374855,7.14,173.98,173.97,2.1267]
[1717569375378,2.1261,174.03,173.97,2.1267]
[1717569375684,7.14,173.98,173.96,2.1268]
[1717569375884,7.14,173.97,173.96,2.1268]
[1717569376784,7.14,173.97,173.96,2.1269]
[1717569377168,2.1261,174.03,173.96,2.1269]
[1717569377358,2.1261,174.03,173.97,2.1267]
[1717569377559,7.14,173.98,173.96,2.1268]
[1717569377787,2.1261,174.03,173.97,2.1268]
[1717569377971,7.14,173.98,173.96,2.1268]
[1717569378160,2.1261,174.03,173.97,2.1268]
[1717569378385,7.14,173.98,173.97,2.1268]
[1717569380098,2.1261,174.03,173.97,2.1268]
[1717569380264,7.14,173.98,173.97,2.1268]
[1717569382289,2.1261,174.03,173.97,2.4668]
[1717569382497,20.4,174.04,173.99,2.1265]
[1717569382682,0.4,174.04,173.97,4.5935]
[1717569383027,7.14,173.98,173.97,2.4668]
[1717569383296,2.5259,174.04,173.98,2.1265]
[1717569383474,7.14,173.99,173.98,2.1265]
[1717569384312,0.4,174.04,173.99,2.1265]
[1717569384313,7.14,174.0,173.99,2.1265]
[1717569384793,7.14,174.0,173.98,0.17]
[1717569384794,0.4,174.04,174.0,2.1263]
[1717569385113,7.14,174.01,174.0,2.1264]
[1717569387219,0.4,174.04,173.99,8.506]
[1717569387429,0.4,174.04,174.01,2.1262]
[1717569387593,7.14,174.02,174.01,2.1262]
[1717569388290,7.14,174.02,174.0,2.1263]
[1717569388486,0.4,174.04,174.02,2.1261]
[1717569388714,7.14,174.03,174.02,2.1261]
[1717569389012,7.14,174.03,173.98,403.2378]
[1717569389013,7.14,174.03,174.0,2.1263]
[1717569390624,7.14,174.01,174.0,2.1263]
[1717569391623,7.14,174.01,173.98,276.76]
[1717569391914,7.14,174.0,173.99,2.1264]
[1717569392705,7.14,174.0,173.98,2.1266]
[1717569392915,2.5259,174.04,173.99,2.1265]
[1717569393127,7.14,174.0,173.99,2.1265]
[1717569393435,0.4,174.04,174.0,2.1264]
[1717569393600,7.14,174.01,174.0,2.1264]
[1717569395197,0.4,174.04,174.0,2.1264]
[1717569395398,7.14,174.01,174.0,2.1263]
[1717569400234,0.4,174.04,174.0,2.1263]
[1717569400401,7.14,174.01,174.0,2.1263]
[1717569402835,7.14,174.01,174.0,2.1264]
[1717569405509,0.4,174.04,174.01,2.1262]
[1717569405823,7.14,174.02,174.01,2.1262]
[1717569407399,0.4,174.04,174.0,2.1263]
[1717569407728,7.14,174.02,174.0,2.1263]
[1717569407933,7.14,174.02,174.01,2.1263]
[1717569409509,0.4,174.04,174.01,2.1263]
[1717569409711,7.14,174.02,174.01,2.1263]
[1717569415310,0.4,174.04,174.01,2.1263]
[1717569415511,7.14,174.02,174.01,2.1263]
[1717569419226,0.4,174.04,174.01,2.1263]
[1717569419427,7.14,174.02,174.01,2.1263]
[1717569420815,7.14,174.02,173.99,2.1264]
[1717569421045,7.14,174.0,173.99,2.1264]
[1717569421949,0.4,174.04,173.99,6.3796]
[1717569422116,0.4,174.04,174.01,2.1262]
[1717569422317,0.4,174.04,174.0,4.2527]
[1717569422636,7.14,174.02,174.01,2.1262]
[1717569423217,0.4,174.04,174.01,2.1262]
[1717569423441,7.14,174.02,174.01,2.1262]
[1717569423639,0.4,174.04,174.02,2.1261]
[1717569423835,7.14,174.03,174.02,2.1261]
[1717569424315,0.4,174.04,174.02,2.1261]
[1717569424513,7.14,174.03,174.02,2.1261]
[1717569424731,7.14,174.03,174.01,2.1262]
[1717569424925,0.4,174.04,174.01,2.1262]
[1717569425142,0.4,174.04,174.02,2.1261]
[1717569425440,7.14,174.03,174.01,2.1262]
[1717569425619,7.14,174.02,174.01,2.1262]
[1717569428345,0.4,174.04,174.02,2.1261]
[1717569428645,7.14,174.03,174.02,2.1261]
[1717569429740,7.14,174.03,174.01,2.1263]
[1717569430149,7.14,174.02,174.01,2.1263]
[1717569430945,0.4,174.04,174.03,2.126]
[1717569431320,0.4,174.04,174.03,8.2385]
[1717569431524,0.4,174.04,174.03,27.713]
[1717569431720,0.4,174.04,174.03,6.3781]
[1717569431928,7.54,174.04,174.03,2.126]
[1717569433248,7.54,174.04,174.01,4.2526]
[1717569433545,7.54,174.04,174.02,2.1261]
[1717569433546,0.4,174.04,174.02,2.1261]
[1717569433749,7.14,174.03,174.02,2.1261]
[1717569435055,0.4,174.04,174.03,2.126]
[1717569435260,7.54,174.04,174.02,2.1261]
[1717569435431,7.14,174.03,174.0,2.1263]
[1717569435630,7.14,174.01,174.0,2.1263]
[1717569436361,0.4,174.04,173.98,10.6333]
[1717569436525,7.14,174.02,174.01,2.1262]
[1717569437153,0.4,174.04,174.01,2.1262]
[1717569437356,7.14,174.02,174.01,2.1262]
[1717569437833,0.4,174.04,174.01,2.1262]
[1717569438024,0.4,174.04,174.02,2.1261]
[1717569438226,7.14,174.03,174.02,2.1261]
[1717569438928,7.54,174.04,174.03,2.126]
[1717569439450,0.4,174.04,174.03,2.126]
[1717569439756,7.54,174.04,174.03,2.126]
[1717569444530,7.54,174.04,174.02,2.1261]
[1717569444857,7.14,174.03,174.02,2.1261]
[1717569445325,7.14,174.03,174.01,4.2526]
[1717569445326,0.4,174.04,174.03,2.126]
[1717569445527,7.54,174.04,174.03,2.126]
[1717569446358,7.54,174.04,174.0,2.1263]
[1717569446537,7.14,174.01,173.98,287.3931]
[1717569446729,7.14,174.01,174.0,2.1263]
[1717569446940,7.14,174.02,174.01,2.1262]
[1717569447753,7.14,174.02,173.99,2.1264]
[1717569447946,7.14,174.0,173.98,278.7166]
[1717569448147,7.14,173.99,173.98,278.7166]
[1717569450872,7.14,173.99,173.98,2.1266]
[1717569453859,0.4,174.04,173.99,2.1264]
[1717569454068,7.14,174.0,173.99,2.1264]
[1717569455767,0.4,174.04,174.01,2.1263]
[1717569455974,7.14,174.02,174.01,2.1263]
[1717569456964,7.14,174.02,174.01,2.1262]
[1717569457380,0.4,174.04,174.02,2.1261]
[1717569457584,7.14,174.03,174.01,2.1262]
[1717569457787,7.14,174.02,174.01,2.1263]
[1717569457959,0.4,174.04,174.02,2.1261]
[1717569458301,7.14,174.03,174.02,2.1261]
[1717569459060,7.14,174.03,174.01,2.1262]
[1717569459771,0.4,174.04,174.02,2.1261]
[1717569459967,7.14,174.03,174.02,2.1261]
[1717569462500,7.14,174.03,174.01,2.1262]
[1717569463585,0.4,174.04,174.02,2.1261]
[1717569463793,7.54,174.04,174.02,2.1261]
[1717569465677,7.54,174.04,174.01,2.1262]
[1717569467285,7.54,174.04,174.02,2.1261]
[1717569468027,7.54,174.04,174.01,2.1262]
[1717569469213,0.4,174.04,174.01,2.1262]
[1717569469381,7.54,174.04,174.02,2.1261]
[1717569469808,0.4,174.04,174.02,2.1261]
[1717569470012,7.54,174.04,174.02,2.1261]
[1717569472112,0.4,174.04,174.02,2.1261]
[1717569472517,7.14,174.03,173.99,276.59]
[1717569472700,7.14,174.01,174.0,2.1263]
[1717569473492,0.4,174.04,174.0,2.1263]
[1717569473706,7.14,174.02,174.01,2.1263]
[1717569475915,7.14,174.03,174.02,2.1261]
[1717569478425,7.14,174.03,173.99,10.6326]
[1717569478426,7.14,174.03,174.01,2.1262]
[1717569478613,0.4,174.04,173.98,276.59]
[1717569478818,7.14,174.01,174.0,2.1264]
[1717569479314,7.14,174.01,173.99,2.1264]
[1717569479712,7.14,174.01,174.0,2.1264]
[1717569480228,0.4,174.04,174.01,2.1262]
[1717569480534,7.14,174.02,174.01,2.1262]
[1717569483428,0.4,174.04,174.01,2.1262]
[1717569483598,7.14,174.02,174.01,2.1262]
[1717569497025,0.4,174.04,173.98,276.59]
[1717569497225,0.4,174.04,174.03,2.126]
[1717569498051,7.54,174.04,174.02,2.1261]
[1717569498351,0.4,174.04,174.02,2.1261]
[1717569498557,7.54,174.04,174.02,2.1261]
[1717569499052,7.14,174.03,174.01,2.1262]
[1717569500547,7.54,174.04,174.01,2.1262]
[1717569503157,7.54,174.04,174.02,2.1261]
[1717569503629,7.54,174.04,174.01,2.1262]
[1717569506437,0.4,174.04,174.01,2.1262]
[1717569506635,7.54,174.04,174.01,2.1262]
[1717569511360,0.4,174.04,174.03,2.126]
[1717569511551,0.4,174.04,174.02,2.2961]
[1717569511753,0.4,174.04,174.03,2.126]
[1717569512051,0.4,174.04,174.02,2.4661]
[1717569512626,0.4,174.04,174.03,2.126]
[1717569525965,7.54,174.04,174.02,2.1261]
[1717569526552,7.14,174.03,174.01,276.59]
[1717569526866,7.14,174.02,174.01,276.59]
[1717569527066,7.14,174.02,174.01,2.1263]
[1717569528183,0.4,174.04,174.01,2.1263]
[1717569528369,7.14,174.02,174.01,2.1263]
[1717569530076,0.4,174.04,174.02,2.1261]
[1717569530286,7.54,174.04,174.02,2.1261]
[1717569531470,7.14,174.03,174.02,2.1261]
[1717569531675,0.4,174.04,174.02,2.1261]
[1717569531883,7.14,174.03,174.02,2.1261]
[1717569532068,7.14,174.03,173.99,6.3796]
[1717569532379,7.14,174.03,174.01,2.1262]
[1717569532688,7.14,174.03,174.02,2.1261]
[1717569533061,0.4,174.04,174.02,2.1261]
[1717569533463,7.14,174.03,174.02,2.1261]
[1717569536254,7.14,174.03,174.01,2.1262]
[1717569536681,7.54,174.04,174.01,2.1262]
[1717569536990,7.54,174.04,174.0,4.2528]
[1717569537189,7.54,174.04,174.02,2.1261]
[1717569537482,0.4,174.04,174.02,2.1261]
[1717569537702,7.54,174.04,174.02,2.1261]
[1717569538062,0.4,174.04,174.02,2.1261]
[1717569538375,7.54,174.04,174.02,2.1261]
[1717569538579,7.54,174.04,174.01,2.1262]
[1717569539786,0.4,174.04,174.02,2.1261]
[1717569539988,7.54,174.04,174.02,2.1261]
[1717569540390,0.4,174.04,174.02,2.1261]
[1717569540710,7.54,174.04,174.02,2.1261]
[1717569541392,0.4,174.04,174.02,2.1261]
[1717569543402,7.54,174.04,174.02,2.1261]
[1717569546301,7.54,174.04,174.03,2.126]
[1717569546491,0.4,174.04,174.03,2.126]
[1717569552725,0.4,174.04,174.03,6.3781]
[1717569553516,0.4,174.04,174.03,6.7181]
[1717569553728,0.4,174.04,174.03,148.56169659]
[1717569553947,0.4,174.04,174.03,190.79119659]
[1717569554623,0.4,174.04,174.03,225.30119659]
[1717569554828,0.823718,174.11,174.1,6.3756]
[1717569555127,0.823718,174.11,174.1,304.99109125]
[1717569555327,0.823718,174.11,174.1,328.091]
[1717569555929,0.823718,174.11,174.1,320.951]
[1717569556600,0.823718,174.11,174.1,355.461]
[1717569556805,0.823718,174.11,174.1,382.601]
[1717569560630,0.823718,174.11,174.1,375.461]
[1717569560939,0.823718,174.11,174.1,382.601]
[1717569561137,0.823718,174.11,174.1,362.601]
[1717569561328,0.823718,174.11,174.1,355.461]
[1717569561627,0.823718,174.11,174.1,362.601]
[1717569563353,0.4,174.14,174.13,21.2482]
[1717569563530,0.4,174.14,174.13,50.0161]
[1717569563852,0.4,174.14,174.13,42.8761]
[1717569564724,0.4,174.14,174.13,319.4661]
[1717569564923,0.4,174.14,174.13,326.6061]
[1717569565759,0.4,174.14,174.13,361.1161]
[1717569565956,0.4,174.14,174.13,381.1161]
[1717569566136,0.1018484,174.15,174.14,197.82010682]
[1717569566442,0.1018484,174.15,174.14,225.30010682]
[1717569566748,0.1018484,174.15,174.14,224.7522]
[1717569567135,0.4,174.24,174.19,120.0]
[1717569567341,0.4,174.24,174.23,2.1236]
[1717569567539,0.4,174.24,174.23,2.4636]
[1717569567770,0.4,174.24,174.23,126.7108]
[1717569568255,0.4,174.24,174.23,133.0816]
[1717569569755,0.4,174.24,174.23,126.7108]
[1717569570137,0.4,174.24,174.23,424.9258]
[1717569570457,0.4,174.24,174.23,418.1661]
[1717569571765,0.4,174.24,174.23,2.1236]
[1717569571939,7.54,174.24,174.22,2.1236]
[1717569572144,7.14,174.23,174.22,2.1236]
[1717569572553,0.4,174.24,174.23,2.1236]
[1717569572745,7.54,174.24,174.23,2.1236]
[1717569573353,0.4,174.24,174.23,2.1236]
[1717569573552,7.54,174.24,174.23,2.1236]
[1717569574678,0.4,174.24,174.22,2.1237]
[1717569574865,7.54,174.24,174.22,2.1237]
[1717569575245,7.14,174.23,174.21,278.7138]
[1717569575446,0.4,174.24,174.22,2.1237]
[1717569575674,7.14,174.23,174.22,2.1237]
[1717569577649,0.4,174.24,174.22,2.1237]
[1717569577872,7.14,174.23,174.21,2.1238]
[1717569578071,7.14,174.23,174.2,4.2479]
[1717569578072,7.14,174.22,174.19,276.59]
[1717569578306,7.14,174.2,174.19,276.59]
[1717569578784,7.14,174.2,174.19,278.7141]
[1717569578953,7.14,174.2,174.19,276.59]
[1717569579153,3.1254,174.24,174.19,276.59]
[1717569579351,7.14,174.2,174.19,276.59]
[1717569579557,7.14,174.2,174.14,276.59]
[1717569579750,7.14,174.15,174.14,278.7146]
[1717569579961,7.14,174.15,174.14,276.59]
[1717569581267,35.7,174.15,174.14,276.59]
[1717569581594,2.1247,174.14,174.08,2.1254]
[1717569581884,7.14,174.09,174.08,2.1254]
[1717569582064,7.14,174.09,174.07,175.0055]
[1717569582266,31.2865,174.15,174.06,4.2512]
[1717569582464,29.1619,174.15,174.09,2.1252]
[1717569582677,7.14,174.1,174.09,2.1252]
[1717569582863,7.14,174.1,174.07,2.1255]
[1717569583059,7.14,174.09,174.08,2.1254]
[1717569584262,2.7265,174.15,174.08,2.1254]
[1717569584573,7.14,174.11,174.09,2.1253]
[1717569584971,7.14,174.11,174.1,2.1252]
[1717569585299,29.1619,174.15,174.1,2.1252]
[1717569585466,7.14,174.11,174.1,2.1252]
[1717569585663,0.6019,174.15,174.09,2.1252]
[1717569585986,2.1245,174.16,174.09,2.1252]
[1717569586183,0.6019,174.19,174.08,0.34]
[1717569586373,2.124,174.2,174.13,2.1247]
[1717569586692,7.14,174.16,174.14,0.34]
[1717569586869,7.14,174.15,174.14,0.34]
[1717569587073,2.1241,174.19,174.14,0.34]
[1717569587278,2.1241,174.19,174.13,2.1247]
[1717569587588,7.14,174.15,174.13,2.1247]
[1717569588296,2.1241,174.19,174.13,2.1247]
[1717569588469,7.14,174.15,174.13,2.1247]
[1717569589299,7.14,174.14,174.13,2.1247]
[1717569589502,7.14,174.14,174.13,2.4647]
[1717569589994,2.1241,174.19,174.13,2.4647]
[1717569590179,7.14,174.14,174.13,2.4647]
[1717569591491,7.14,174.15,174.13,2.4647]
[1717569593104,7.14,174.15,174.14,2.1247]
[1717569595000,7.14,174.15,174.13,2.4647]
[1717569596591,7.14,174.14,174.13,0.34]
[1717569596788,7.14,174.14,174.11,172.88]
[1717569596996,7.14,174.13,174.12,2.4649]
[1717569597604,7.14,174.14,174.12,2.4649]
[1717569597918,7.14,174.14,174.13,2.1248]
[1717569598824,7.14,174.14,174.12,2.4649]
[1717569599325,7.14,174.14,174.13,2.1248]
[1717569599618,2.1241,174.19,174.13,2.1248]
[1717569599829,7.14,174.14,174.13,2.1248]
[1717569600211,7.14,174.14,174.09,297.1305]
[1717569600410,7.14,174.1,174.09,172.88]
[1717569600617,7.14,174.1,174.09,175.0053]
[1717569601694,12.7441,174.2,174.09,292.88]
[1717569601900,7.14,174.14,174.11,2.125]
[1717569602128,24.8497,174.21,174.13,2.1248]
[1717569602424,7.14,174.15,174.13,2.1248]
[1717569602998,7.14,174.15,174.12,2.1248]
[1717569603430,2.1242,174.18,174.12,2.1248]
[1717569603604,2.1241,174.19,174.13,2.1248]
[1717569603797,24.8497,174.21,174.13,2.1248]
[1717569603798,7.14,174.15,174.13,2.1248]
[1717569604423,7.14,174.15,174.13,2.1247]
[1717569605637,7.14,174.15,174.12,2.1249]
[1717569605931,7.14,174.14,174.12,2.1249]
[1717569607111,7.14,174.13,174.11,2.295]
[1717569607305,7.14,174.13,174.11,2.125]
[1717569607499,7.14,174.12,174.1,2.1252]
[1717569607706,9.2646,174.15,174.1,2.1252]
[1717569607917,2.1247,174.14,174.09,2.1252]
[1717569608116,28.56,174.15,174.07,120.0]
[1717569608327,2.1247,174.14,174.09,2.1253]
[1717569609124,2.1248,174.13,174.08,2.1254]
[1717569610225,2.1247,174.14,174.08,2.1254]
[1717569610732,2.1248,174.13,174.06,183.273]
[1717569610934,2.1248,174.13,174.07,2.4654]
[1717569611111,2.1248,174.13,174.08,2.1254]
[1717569612035,7.14,174.09,174.08,2.1254]
[1717569613414,7.14,174.09,174.06,2.1256]
[1717569613730,7.14,174.09,174.05,172.88]
[1717569613731,7.14,174.07,174.05,172.88]
[1717569613913,7.14,174.06,174.05,172.88]
[1717569614115,7.14,174.06,174.05,175.0058]
[1717569614328,2.125,174.12,174.07,2.1255]
[1717569614635,7.14,174.09,174.07,2.1255]
[1717569614823,7.14,174.08,174.06,2.1256]
[1717569615207,2.1249,174.13,174.05,183.5088]
[1717569615437,7.14,174.09,174.07,2.1254]
[1717569615638,2.1249,174.13,174.07,2.1254]
[1717569615843,7.14,174.09,174.07,2.1254]
[1717569616332,7.14,174.09,174.08,2.1254]
[1717569616521,2.1248,174.13,174.07,2.1255]
[1717569616733,7.14,174.1,174.07,2.1255]
[1717569618614,2.1249,174.13,174.07,2.1255]
[1717569618815,7.14,174.09,174.07,2.1255]
[1717569619433,2.1249,174.13,174.08,2.1253]
[1717569619639,7.14,174.09,174.08,2.1253]
[1717569620139,2.1248,174.13,174.08,2.1253]
[1717569620437,7.14,174.1,174.07,2.1254]
[1717569620738,7.14,174.09,174.08,2.1254]
[1717569620947,2.1248,174.14,174.08,2.1254]
[1717569621114,7.14,174.1,174.08,2.1254]
[1717569621312,2.1248,174.13,174.08,2.1254]
[1717569621613,7.14,174.11,174.08,2.1254]
[1717569622241,2.1248,174.13,174.08,2.1254]
[1717569622543,7.14,174.11,174.09,2.1253]
[1717569625324,2.1246,174.15,174.1,2.1251]
[1717569625528,7.14,174.12,174.09,2.1252]
[1717569626211,7.14,174.11,174.09,2.1252]
[1717569626415,7.14,174.12,174.1,2.1251]
[1717569626824,7.14,174.12,174.09,2.1252]
[1717569627231,7.14,174.11,174.09,2.1252]
[1717569627825,7.14,174.12,174.09,2.1252]
[1717569628441,7.14,174.12,174.1,2.1251]
[1717569628947,2.1246,174.15,174.1,2.1252]
[1717569629139,7.14,174.12,174.09,8.4578]
[1717569630232,7.14,174.11,174.09,8.4578]
[1717569630632,2.1246,174.15,174.1,0.17]
[1717569630832,7.14,174.12,174.1,0.34]
[1717569631947,2.1244,174.16,174.1,0.34]
[1717569632154,7.14,174.13,174.11,2.125]
[1717569632339,7.14,174.13,174.1,2.4651]
[1717569632845,7.14,174.13,174.11,2.125]
[1717569636453,7.14,174.13,174.12,2.1249]
[1717569636636,2.1243,174.18,174.13,2.1248]
[1717569636952,7.14,174.15,174.13,2.1248]
[1717569637524,2.1243,174.17,174.13,2.1248]
[1717569637728,7.14,174.15,174.13,2.1248]
[1717569640764,7.14,174.2,174.18,2.1242]
[1717569640965,2.1236,174.23,174.18,2.1242]
[1717569641261,2.1236,174.23,174.19,2.124]
[1717569641469,2.5235,174.24,174.19,2.124]
[1717569641633,7.14,174.21,174.2,2.1239]
[1717569642438,7.14,174.21,174.19,2.124]
[1717569643269,2.5235,174.24,174.19,2.124]
[1717569643435,2.1236,174.23,174.18,2.1241]
[1717569644062,2.1236,174.23,174.19,2.1241]
[1717569644469,2.1236,174.23,174.18,2.1241]
[1717569644778,7.14,174.2,174.19,2.124]
[1717569645141,2.1236,174.23,174.19,2.124]
[1717569645341,7.14,174.2,174.19,2.124]
[1717569646747,7.14,174.2,174.16,173.22]
[1717569646946,2.1237,174.23,174.18,2.1241]
[1717569646947,7.14,174.19,174.18,2.1241]
[1717569647970,31.0835,174.24,174.19,2.1241]
[1717569648272,7.14,174.2,174.19,2.1241]
[1717569648563,7.14,174.2,174.18,2.1241]
[1717569648769,7.14,174.19,174.17,2.1243]
[1717569649065,7.14,174.18,174.17,2.1243]
[1717569649966,7.14,174.18,174.16,2.1244]
[1717569650136,7.14,174.17,174.16,2.1244]
[1717569650850,7.14,174.17,174.15,175.0046]
[1717569651161,2.1241,174.19,174.15,172.88]
[1717569651162,7.14,174.16,174.15,172.88]
[1717569653048,7.14,174.16,174.13,2.1247]
[1717569653248,7.14,174.14,174.13,2.1247]
[1717569659649,5.64,174.14,174.13,2.1247]
[1717569660068,2.124,174.2,174.16,2.1244]
[1717569660260,7.14,174.17,174.16,2.1244]
[1717569660558,7.14,174.17,174.12,6.3748]
[1717569660775,7.14,174.15,174.14,2.1246]
[1717569661774,2.1241,174.19,174.14,2.1246]
[1717569661961,7.14,174.15,174.14,2.1246]
[1717569662303,2.124,174.2,174.15,2.1245]
[1717569662577,2.1241,174.19,174.13,4.2496]
[1717569662778,2.124,174.2,174.15,2.1245]
[1717569663266,7.14,174.16,174.15,2.1245]
[1717569663662,0.6019,174.23,174.15,2.1245]
[1717569663663,0.4,174.24,174.17,2.1242]